[Event "Titled Tuesday Blitz November 01 Late 2022"]
[White "Perske, Thore"]
[Black "Kanyamarala, Tarun"]
[WhiteFideId "12902195"]
[BlackFideId "45004714"]
[WhiteElo "2336"]
[BlackElo "2307"]
[Result "0-1"]
[Round "06"]
[TimeControl "180+1"]
[Date "2022.11.02"]
[WhiteClock "0:00:04"]
[BlackClock "0:00:23"]

1. d4 {[%clk 0:03:00]}  Nf6 {[%clk 0:02:58]} 2. g3 {[%clk 0:03:01]}  c5 {[%clk 0:02:55]} 3. dxc5 {[%clk 0:03:01]}  e6 {[%clk 0:02:53]} 4. Bg2 {[%clk 0:03:01]}  Bxc5 {[%clk 0:02:53]} 5. Nf3 {[%clk 0:02:59]}  d5 {[%clk 0:02:53]} 6. c4 {[%clk 0:02:59]}  O-O {[%clk 0:02:50]} 7. O-O {[%clk 0:02:59]}  dxc4 {[%clk 0:02:50]} 8. Nbd2 {[%clk 0:02:59]}  c3 {[%clk 0:02:48]} 9. bxc3 {[%clk 0:03:00]}  Nc6 {[%clk 0:02:47]} 10. Nb3 {[%clk 0:02:58]}  Be7 {[%clk 0:02:47]} 11. Nbd4 {[%clk 0:02:55]}  Nxd4 {[%clk 0:02:45]} 12. cxd4 {[%clk 0:02:49]}  Bd7 {[%clk 0:02:38]} 13. Ne5 {[%clk 0:02:46]}  Rb8 {[%clk 0:02:39]} 14. Nxd7 {[%clk 0:02:38]}  Qxd7 {[%clk 0:02:38]} 15. Bb2 {[%clk 0:02:29]}  Rfd8 {[%clk 0:02:37]} 16. Qb3 {[%clk 0:02:24]}  b5 {[%clk 0:02:35]} 17. Rac1 {[%clk 0:02:23]}  Nd5 {[%clk 0:02:31]} 18. Rfd1 {[%clk 0:01:55]}  a5 {[%clk 0:02:30]} 19. e4 {[%clk 0:01:48]}  Nb6 {[%clk 0:02:29]} 20. d5 {[%clk 0:01:49]}  exd5 {[%clk 0:02:29]} 21. exd5 {[%clk 0:01:48]}  Nc4 {[%clk 0:02:24]} 22. Bd4 {[%clk 0:01:38]}  Bg5 {[%clk 0:02:16]} 23. Rc2 {[%clk 0:01:27]}  Qd6 {[%clk 0:02:07]} 24. Qc3 {[%clk 0:01:22]}  Rbc8 {[%clk 0:02:01]} 25. Qa1 {[%clk 0:00:48]}  Bf6 {[%clk 0:01:56]} 26. Bxf6 {[%clk 0:00:45]}  Qxf6 {[%clk 0:01:56]} 27. Qxf6 {[%clk 0:00:43]}  gxf6 {[%clk 0:01:57]} 28. Bf1 {[%clk 0:00:42]}  Nd6 {[%clk 0:01:56]} 29. Rc6 {[%clk 0:00:39]}  Kf8 {[%clk 0:01:54]} 30. Rdc1 {[%clk 0:00:34]}  b4 {[%clk 0:01:48]} 31. Ba6 {[%clk 0:00:31]}  Rb8 {[%clk 0:01:44]} 32. Bd3 {[%clk 0:00:19]}  f5 {[%clk 0:01:32]} 33. Ra6 {[%clk 0:00:19]}  b3 {[%clk 0:01:30]} 34. axb3 {[%clk 0:00:17]}  Rxb3 {[%clk 0:01:29]} 35. Bf1 {[%clk 0:00:14]}  Ra3 {[%clk 0:01:28]} 36. Rc5 {[%clk 0:00:11]}  Nb7 {[%clk 0:01:12]} 37. Rb5 {[%clk 0:00:11]}  Nd6 {[%clk 0:01:02]} 38. Rbxa5 {[%clk 0:00:10]}  Rb3 {[%clk 0:01:01]} 39. Rc6 {[%clk 0:00:07]}  Rb1 {[%clk 0:00:59]} 40. Raa6 {[%clk 0:00:05]}  Ne4 {[%clk 0:00:58]} 41. Kg2 {[%clk 0:00:05]}  Rb2 {[%clk 0:00:57]} 42. Bd3 {[%clk 0:00:05]}  Rxf2+ {[%clk 0:00:46]} 43. Kg1 {[%clk 0:00:06]}  Rd2 {[%clk 0:00:44]} 44. Bxe4 {[%clk 0:00:06]}  fxe4 {[%clk 0:00:44]} 45. Ra7 {[%clk 0:00:07]}  e3 {[%clk 0:00:42]} 46. Rcc7 {[%clk 0:00:06]}  Rf2 {[%clk 0:00:41]} 47. Re7 {[%clk 0:00:06]}  Rxd5 {[%clk 0:00:29]} 48. Rxe3 {[%clk 0:00:06]}  Rdd2 {[%clk 0:00:30]} 49. Ra8+ {[%clk 0:00:05]}  Kg7 {[%clk 0:00:30]} 50. Rae8 {[%clk 0:00:05]}  Rxh2 {[%clk 0:00:29]} 51. R8e4 {[%clk 0:00:04]}  Rdg2+ {[%clk 0:00:25]} 52. Kf1 {[%clk 0:00:05]}  Ra2 {[%clk 0:00:25]} 53. Kg1 {[%clk 0:00:03]}  Rhg2+ {[%clk 0:00:25]} 54. Kh1 {[%clk 0:00:03]}  Rgb2 {[%clk 0:00:24]} 55. Re1 {[%clk 0:00:03]}  Rh2+ {[%clk 0:00:24]} 56. Kg1 {[%clk 0:00:03]}  Rhg2+ {[%clk 0:00:24]} 57. Kf1 {[%clk 0:00:04]}  Raf2# {[%clk 0:00:23]} 0-1


[Site "https://www.chess.com"]

[Event "Titled Tuesday Blitz November 01 Late 2022"]
[White "Petrova, Irina"]
[Black "Winkels, Marcel"]
[WhiteFideId "14124122"]
[BlackFideId "1003887"]
[WhiteElo "2023"]
[BlackElo "1900"]
[Result "0-1"]
[Round "06"]
[TimeControl "180+1"]
[Date "2022.11.02"]
[WhiteClock "0:00:01"]
[BlackClock "0:00:40"]

1. e4 {[%clk 0:03:00]}  c5 {[%clk 0:03:00]} 2. Nf3 {[%clk 0:03:00]}  e6 {[%clk 0:03:00]} 3. c4 {[%clk 0:02:59]}  Nc6 {[%clk 0:02:57]} 4. Nc3 {[%clk 0:02:59]}  Nf6 {[%clk 0:02:55]} 5. Be2 {[%clk 0:02:55]}  a6 {[%clk 0:02:53]} 6. O-O {[%clk 0:02:54]}  Be7 {[%clk 0:02:52]} 7. d4 {[%clk 0:02:54]}  cxd4 {[%clk 0:02:52]} 8. Nxd4 {[%clk 0:02:55]}  O-O {[%clk 0:02:50]} 9. Be3 {[%clk 0:02:55]}  Qc7 {[%clk 0:02:44]} 10. Qd2 {[%clk 0:02:53]}  d6 {[%clk 0:02:42]} 11. Rfc1 {[%clk 0:02:51]}  Ne5 {[%clk 0:02:36]} 12. f3 {[%clk 0:02:46]}  Bd7 {[%clk 0:02:33]} 13. b3 {[%clk 0:02:40]}  Rac8 {[%clk 0:02:32]} 14. a4 {[%clk 0:02:39]}  Rfe8 {[%clk 0:02:19]} 15. a5 {[%clk 0:02:23]}  Qb8 {[%clk 0:02:18]} 16. Na4 {[%clk 0:02:18]}  Bd8 {[%clk 0:02:16]} 17. Bf1 {[%clk 0:02:02]}  Bxa4 {[%clk 0:02:14]} 18. Rxa4 {[%clk 0:02:03]}  Bc7 {[%clk 0:02:14]} 19. b4 {[%clk 0:01:40]}  Ng6 {[%clk 0:02:12]} 20. g3 {[%clk 0:01:10]}  d5 {[%clk 0:02:11]} 21. exd5 {[%clk 0:00:53]}  exd5 {[%clk 0:02:10]} 22. Nf5 {[%clk 0:00:49]}  dxc4 {[%clk 0:01:58]} 23. Bxc4 {[%clk 0:00:49]}  Rcd8 {[%clk 0:01:51]} 24. Qa2 {[%clk 0:00:44]}  Ne5 {[%clk 0:01:50]} 25. Be2 {[%clk 0:00:36]}  g6 {[%clk 0:01:48]} 26. Nh4 {[%clk 0:00:16]}  Nxf3+ {[%clk 0:01:41]} 27. Bxf3 {[%clk 0:00:17]}  Rxe3 {[%clk 0:01:41]} 28. Bg2 {[%clk 0:00:15]}  Be5 {[%clk 0:01:27]} 29. Rf1 {[%clk 0:00:12]}  Qd6 {[%clk 0:01:24]} 30. Qc4 {[%clk 0:00:08]}  Qd4 {[%clk 0:01:20]} 31. Qxd4 {[%clk 0:00:05]}  Bxd4 {[%clk 0:01:20]} 32. Kh1 {[%clk 0:00:05]}  Ng4 {[%clk 0:01:13]} 33. Ra2 {[%clk 0:00:03]}  Rb3 {[%clk 0:01:07]} 34. Bxb7 {[%clk 0:00:02]}  Rxb4 {[%clk 0:01:04]} 35. Bxa6 {[%clk 0:00:02]}  Ra8 {[%clk 0:00:59]} 36. Be2 {[%clk 0:00:02]}  Ne3 {[%clk 0:00:57]} 37. Rc1 {[%clk 0:00:01]}  Rab8 {[%clk 0:00:41]} 38. Bf3 {[%clk 0:00:01]}  Rb1 {[%clk 0:00:40]} 0-1


[Site "https://www.chess.com"]

[Event "Titled Tuesday Blitz November 01 Late 2022"]
[White "Piesik, Piotr"]
[Black "Kodinets, Konstantin L."]
[WhiteFideId "1136194"]
[BlackFideId "4122011"]
[WhiteElo "2323"]
[BlackElo "2447"]
[Result "1/2-1/2"]
[Round "06"]
[TimeControl "180+1"]
[Date "2022.11.02"]
[WhiteClock "0:01:21"]
[BlackClock "0:00:38"]

1. Nf3 {[%clk 0:03:00]}  d6 {[%clk 0:02:59]} 2. d4 {[%clk 0:03:00]}  Nf6 {[%clk 0:02:59]} 3. g3 {[%clk 0:02:58]}  Nbd7 {[%clk 0:02:59]} 4. Bg2 {[%clk 0:02:58]}  c6 {[%clk 0:03:00]} 5. O-O {[%clk 0:02:57]}  e5 {[%clk 0:03:01]} 6. dxe5 {[%clk 0:02:58]}  dxe5 {[%clk 0:03:00]} 7. Nbd2 {[%clk 0:02:58]}  a5 {[%clk 0:02:58]} 8. e4 {[%clk 0:02:58]}  Bc5 {[%clk 0:02:55]} 9. a4 {[%clk 0:02:58]}  O-O {[%clk 0:02:55]} 10. b3 {[%clk 0:02:57]}  Qe7 {[%clk 0:02:53]} 11. Bb2 {[%clk 0:02:57]}  Ne8 {[%clk 0:02:49]} 12. Nc4 {[%clk 0:02:57]}  f6 {[%clk 0:02:49]} 13. Qe2 {[%clk 0:02:51]}  Nb6 {[%clk 0:02:47]} 14. Rfd1 {[%clk 0:02:50]}  Nxc4 {[%clk 0:02:40]} 15. Qxc4+ {[%clk 0:02:49]}  Be6 {[%clk 0:02:41]} 16. Qe2 {[%clk 0:02:49]}  Nc7 {[%clk 0:02:40]} 17. Nd2 {[%clk 0:02:47]}  Rfd8 {[%clk 0:02:33]} 18. Nc4 {[%clk 0:02:47]}  b6 {[%clk 0:02:32]} 19. Bf3 {[%clk 0:02:42]}  Rxd1+ {[%clk 0:02:30]} 20. Rxd1 {[%clk 0:02:41]}  Rd8 {[%clk 0:02:30]} 21. Rxd8+ {[%clk 0:02:26]}  Qxd8 {[%clk 0:02:31]} 22. Bg4 {[%clk 0:02:26]}  Bf7 {[%clk 0:02:29]} 23. Ne3 {[%clk 0:02:24]}  Ne6 {[%clk 0:01:55]} 24. Bxe6 {[%clk 0:02:20]}  Bxe6 {[%clk 0:01:54]} 25. Kg2 {[%clk 0:02:20]}  Qd7 {[%clk 0:01:44]} 26. h4 {[%clk 0:02:19]}  g6 {[%clk 0:01:26]} 27. h5 {[%clk 0:02:15]}  Kf7 {[%clk 0:01:23]} 28. Qf3 {[%clk 0:02:07]}  Bd4 {[%clk 0:01:14]} 29. Bxd4 {[%clk 0:01:59]}  Qxd4 {[%clk 0:01:11]} 30. hxg6+ {[%clk 0:01:57]}  hxg6 {[%clk 0:01:11]} 31. Ng4 {[%clk 0:01:56]}  Bxg4 {[%clk 0:01:11]} 32. Qxg4 {[%clk 0:01:57]}  f5 {[%clk 0:01:11]} 33. Qg5 {[%clk 0:01:35]}  Qxe4+ {[%clk 0:01:08]} 34. Kg1 {[%clk 0:01:36]}  Qxc2 {[%clk 0:01:08]} 35. Qd8 {[%clk 0:01:36]}  Qb1+ {[%clk 0:01:05]} 36. Kh2 {[%clk 0:01:35]}  Qxb3 {[%clk 0:01:02]} 37. Qd7+ {[%clk 0:01:32]}  Kf8 {[%clk 0:00:57]} 38. Qxc6 {[%clk 0:01:29]}  Kg7 {[%clk 0:00:52]} 39. Qc7+ {[%clk 0:01:27]}  Kf6 {[%clk 0:00:50]} 40. Qd8+ {[%clk 0:01:27]}  Kf7 {[%clk 0:00:47]} 41. Qd7+ {[%clk 0:01:24]}  Kf6 {[%clk 0:00:48]} 42. Qd8+ {[%clk 0:01:21]}  Kf7 {[%clk 0:00:42]} 43. Qd7+ {[%clk 0:01:21]}  Kf6 {[%clk 0:00:38]} 44. Qd8+ {[%clk 0:01:21]} 1/2-1/2


[Site "https://www.chess.com"]

[Event "Titled Tuesday Blitz November 01 Late 2022"]
[White "Postny, Evgeny"]
[Black "Lehtosaari, Mauri"]
[WhiteFideId "2804344"]
[BlackFideId "501999"]
[WhiteElo "2473"]
[BlackElo "2511"]
[Result "1-0"]
[Round "06"]
[TimeControl "180+1"]
[Date "2022.11.02"]
[WhiteClock "0:00:20"]
[BlackClock "0:00:04"]

1. e4 {[%clk 0:03:00]}  c5 {[%clk 0:02:58]} 2. Nf3 {[%clk 0:02:58]}  e6 {[%clk 0:02:59]} 3. d4 {[%clk 0:02:58]}  cxd4 {[%clk 0:02:59]} 4. Nxd4 {[%clk 0:02:59]}  Bc5 {[%clk 0:02:58]} 5. Nb3 {[%clk 0:02:56]}  Bb6 {[%clk 0:02:58]} 6. Bd3 {[%clk 0:02:56]}  Ne7 {[%clk 0:02:55]} 7. Qe2 {[%clk 0:02:56]}  O-O {[%clk 0:02:51]} 8. Be3 {[%clk 0:02:56]}  Nbc6 {[%clk 0:02:50]} 9. c4 {[%clk 0:02:53]}  Bxe3 {[%clk 0:02:48]} 10. Qxe3 {[%clk 0:02:54]}  d5 {[%clk 0:02:48]} 11. O-O {[%clk 0:02:54]}  dxc4 {[%clk 0:02:24]} 12. Bxc4 {[%clk 0:02:53]}  b6 {[%clk 0:02:20]} 13. Nc3 {[%clk 0:02:51]}  Bb7 {[%clk 0:02:14]} 14. Rac1 {[%clk 0:02:50]}  Ne5 {[%clk 0:02:09]} 15. Be2 {[%clk 0:02:50]}  N7g6 {[%clk 0:01:57]} 16. f4 {[%clk 0:02:41]}  Nd7 {[%clk 0:01:57]} 17. Rfd1 {[%clk 0:02:35]}  Qe7 {[%clk 0:01:52]} 18. e5 {[%clk 0:02:34]}  Rac8 {[%clk 0:01:44]} 19. Bf3 {[%clk 0:02:27]}  Bxf3 {[%clk 0:01:39]} 20. Qxf3 {[%clk 0:02:28]}  Nc5 {[%clk 0:01:36]} 21. Nd4 {[%clk 0:02:20]}  a6 {[%clk 0:01:07]} 22. b4 {[%clk 0:02:05]}  Nb7 {[%clk 0:00:53]} 23. Nc6 {[%clk 0:01:44]}  Qh4 {[%clk 0:00:32]} 24. g3 {[%clk 0:01:38]}  Qh3 {[%clk 0:00:30]} 25. Ne2 {[%clk 0:01:27]}  Nh4 {[%clk 0:00:26]} 26. Qe4 {[%clk 0:01:14]}  Nf5 {[%clk 0:00:23]} 27. Ned4 {[%clk 0:00:44]}  Kh8 {[%clk 0:00:18]} 28. Nxf5 {[%clk 0:00:43]}  exf5 {[%clk 0:00:19]} 29. Qf3 {[%clk 0:00:37]}  a5 {[%clk 0:00:16]} 30. Ne7 {[%clk 0:00:26]}  Rxc1 {[%clk 0:00:14]} 31. Rxc1 {[%clk 0:00:26]}  axb4 {[%clk 0:00:15]} 32. Qxb7 {[%clk 0:00:25]}  Qh6 {[%clk 0:00:13]} 33. Rc8 {[%clk 0:00:23]}  g6 {[%clk 0:00:04]} 34. Qb8 {[%clk 0:00:20]} 1-0


[Site "https://www.chess.com"]

[Event "Titled Tuesday Blitz November 01 Late 2022"]
[White "Rangel, Daniel"]
[Black "Pinheiro, Iung Alicio de O."]
[WhiteFideId "2124475"]
[BlackFideId "2104350"]
[WhiteElo "2225"]
[BlackElo "2283"]
[Result "1-0"]
[Round "06"]
[TimeControl "180+1"]
[Date "2022.11.02"]
[WhiteClock "0:00:02"]
[BlackClock "0:00:05"]

1. e4 {[%clk 0:02:59]}  c5 {[%clk 0:02:58]} 2. Nf3 {[%clk 0:02:59]}  Nc6 {[%clk 0:02:58]} 3. g3 {[%clk 0:02:58]}  g6 {[%clk 0:02:49]} 4. Bg2 {[%clk 0:02:55]}  Bg7 {[%clk 0:02:50]} 5. O-O {[%clk 0:02:55]}  d6 {[%clk 0:02:45]} 6. c3 {[%clk 0:02:49]}  e5 {[%clk 0:02:43]} 7. Na3 {[%clk 0:02:45]}  Nge7 {[%clk 0:02:43]} 8. Nc2 {[%clk 0:02:42]}  O-O {[%clk 0:02:43]} 9. d4 {[%clk 0:02:42]}  exd4 {[%clk 0:02:38]} 10. cxd4 {[%clk 0:02:39]}  Bg4 {[%clk 0:02:37]} 11. Be3 {[%clk 0:02:24]}  Qb6 {[%clk 0:02:27]} 12. Rb1 {[%clk 0:02:09]}  Bxf3 {[%clk 0:02:22]} 13. Bxf3 {[%clk 0:01:57]}  Nxd4 {[%clk 0:01:59]} 14. Nxd4 {[%clk 0:01:49]}  Bxd4 {[%clk 0:01:50]} 15. Bh6 {[%clk 0:01:39]}  Rfe8 {[%clk 0:01:43]} 16. b4 {[%clk 0:01:37]}  cxb4 {[%clk 0:01:26]} 17. a3 {[%clk 0:01:35]}  a5 {[%clk 0:01:26]} 18. Qd2 {[%clk 0:01:29]}  Nc6 {[%clk 0:01:25]} 19. axb4 {[%clk 0:01:10]}  axb4 {[%clk 0:01:18]} 20. Be2 {[%clk 0:01:03]}  Ne5 {[%clk 0:00:47]} 21. Kg2 {[%clk 0:01:00]}  Bc5 {[%clk 0:00:43]} 22. f4 {[%clk 0:00:51]}  Nd7 {[%clk 0:00:38]} 23. Bc4 {[%clk 0:00:45]}  Nf6 {[%clk 0:00:33]} 24. f5 {[%clk 0:00:23]}  d5 {[%clk 0:00:22]} 25. exd5 {[%clk 0:00:15]}  Ng4 {[%clk 0:00:18]} 26. fxg6 {[%clk 0:00:10]}  hxg6 {[%clk 0:00:17]} 27. d6 {[%clk 0:00:09]}  Be3 {[%clk 0:00:14]} 28. Bxf7+ {[%clk 0:00:05]}  Kh7 {[%clk 0:00:14]} 29. Qd3 {[%clk 0:00:06]}  Rg8 {[%clk 0:00:11]} 30. Bxe3 {[%clk 0:00:04]}  Nxe3+ {[%clk 0:00:11]} 31. Kh3 {[%clk 0:00:03]}  Nxf1 {[%clk 0:00:10]} 32. Bxg8+ {[%clk 0:00:03]}  Rxg8 {[%clk 0:00:10]} 33. Rxf1 {[%clk 0:00:04]}  b3 {[%clk 0:00:06]} 34. Rf7+ {[%clk 0:00:04]}  Rg7 {[%clk 0:00:06]} 35. Rxg7+ {[%clk 0:00:04]}  Kxg7 {[%clk 0:00:07]} 36. d7 {[%clk 0:00:04]}  b2 {[%clk 0:00:08]} 37. d8=Q {[%clk 0:00:02]}  Qe6+ {[%clk 0:00:07]} 38. Kg2 {[%clk 0:00:02]}  Qc6+ {[%clk 0:00:07]} 39. Q3d5 {[%clk 0:00:02]}  Qc2+ {[%clk 0:00:07]} 40. Kh3 {[%clk 0:00:02]}  b1=Q {[%clk 0:00:05]} 41. Q8g8+ {[%clk 0:00:02]}  Kh6 {[%clk 0:00:05]} 42. Qh8# {[%clk 0:00:02]} 1-0


[Site "https://www.chess.com"]

[Event "Titled Tuesday Blitz November 01 Late 2022"]
[White "Rorrer, Grayson"]
[Black "Goncalves, Davi Sulzbacher"]
[WhiteFideId "30944996"]
[BlackFideId "2154510"]
[WhiteElo "2130"]
[BlackElo "2182"]
[Result "1-0"]
[Round "06"]
[TimeControl "180+1"]
[Date "2022.11.02"]
[WhiteClock "0:00:02"]
[BlackClock "0:00:09"]

1. e4 {[%clk 0:03:00]}  c5 {[%clk 0:02:59]} 2. Nf3 {[%clk 0:02:56]}  Nc6 {[%clk 0:03:00]} 3. Bb5 {[%clk 0:02:56]}  g6 {[%clk 0:03:00]} 4. O-O {[%clk 0:02:56]}  Bg7 {[%clk 0:03:00]} 5. c3 {[%clk 0:02:56]}  Nf6 {[%clk 0:03:00]} 6. Re1 {[%clk 0:02:56]}  O-O {[%clk 0:02:59]} 7. d4 {[%clk 0:02:57]}  d5 {[%clk 0:02:59]} 8. e5 {[%clk 0:02:57]}  Ne4 {[%clk 0:02:55]} 9. Be3 {[%clk 0:02:57]}  cxd4 {[%clk 0:02:54]} 10. cxd4 {[%clk 0:02:57]}  Bg4 {[%clk 0:02:44]} 11. h3 {[%clk 0:02:42]}  Bf5 {[%clk 0:02:42]} 12. Bxc6 {[%clk 0:02:28]}  bxc6 {[%clk 0:02:41]} 13. Nfd2 {[%clk 0:02:28]}  Rb8 {[%clk 0:02:36]} 14. Nxe4 {[%clk 0:02:27]}  Bxe4 {[%clk 0:02:36]} 15. b3 {[%clk 0:02:25]}  Qa5 {[%clk 0:02:33]} 16. Qc1 {[%clk 0:02:19]}  c5 {[%clk 0:02:20]} 17. Nc3 {[%clk 0:01:56]}  cxd4 {[%clk 0:02:18]} 18. Bxd4 {[%clk 0:01:57]}  Rfc8 {[%clk 0:02:17]} 19. Qd2 {[%clk 0:01:57]}  Bf5 {[%clk 0:01:58]} 20. Rac1 {[%clk 0:01:44]}  Rb7 {[%clk 0:01:48]} 21. Qb2 {[%clk 0:00:40]}  Be6 {[%clk 0:01:31]} 22. Na4 {[%clk 0:00:31]}  Rbc7 {[%clk 0:01:29]} 23. Kh2 {[%clk 0:00:24]}  Bh6 {[%clk 0:01:17]} 24. Rxc7 {[%clk 0:00:16]}  Rxc7 {[%clk 0:01:18]} 25. Nc3 {[%clk 0:00:15]}  Qb4 {[%clk 0:01:14]} 26. Rd1 {[%clk 0:00:15]}  Bg5 {[%clk 0:00:54]} 27. a3 {[%clk 0:00:08]}  Qb8 {[%clk 0:00:51]} 28. Na4 {[%clk 0:00:07]}  Bf5 {[%clk 0:00:44]} 29. Nc5 {[%clk 0:00:06]}  Qc8 {[%clk 0:00:43]} 30. b4 {[%clk 0:00:06]}  Bf4+ {[%clk 0:00:40]} 31. Kg1 {[%clk 0:00:04]}  Bxh3 {[%clk 0:00:39]} 32. gxh3 {[%clk 0:00:05]}  Qxh3 {[%clk 0:00:38]} 33. f3 {[%clk 0:00:02]}  Qxf3 {[%clk 0:00:37]} 34. Qb3 {[%clk 0:00:01]}  Qg4+ {[%clk 0:00:35]} 35. Kf2 {[%clk 0:00:02]}  Bg5 {[%clk 0:00:35]} 36. Qf3 {[%clk 0:00:02]}  Bh4+ {[%clk 0:00:34]} 37. Ke2 {[%clk 0:00:02]}  Qc8 {[%clk 0:00:20]} 38. Qxd5 {[%clk 0:00:02]}  e6 {[%clk 0:00:18]} 39. Qe4 {[%clk 0:00:02]}  Be7 {[%clk 0:00:18]} 40. Rf1 {[%clk 0:00:02]}  a5 {[%clk 0:00:18]} 41. Qf3 {[%clk 0:00:02]}  Qe8 {[%clk 0:00:18]} 42. Qd3 {[%clk 0:00:01]}  axb4 {[%clk 0:00:18]} 43. axb4 {[%clk 0:00:02]}  Ra7 {[%clk 0:00:18]} 44. b5 {[%clk 0:00:02]}  Ra2+ {[%clk 0:00:18]} 45. Ke3 {[%clk 0:00:02]}  Qb8 {[%clk 0:00:16]} 46. Rc1 {[%clk 0:00:01]}  Bxc5 {[%clk 0:00:16]} 47. Rxc5 {[%clk 0:00:01]}  Qa8 {[%clk 0:00:15]} 48. Rc2 {[%clk 0:00:01]}  Ra3 {[%clk 0:00:15]} 49. Bc3 {[%clk 0:00:02]}  Ra7 {[%clk 0:00:14]} 50. b6 {[%clk 0:00:02]}  Rb7 {[%clk 0:00:14]} 51. Bd4 {[%clk 0:00:03]}  Qd8 {[%clk 0:00:13]} 52. Qe4 {[%clk 0:00:03]}  Qg5+ {[%clk 0:00:13]} 53. Kd3 {[%clk 0:00:02]}  Qd8 {[%clk 0:00:12]} 54. Qxb7 {[%clk 0:00:02]}  Qd5 {[%clk 0:00:09]} 55. Qxd5 {[%clk 0:00:02]} 1-0


[Site "https://www.chess.com"]

[Event "Titled Tuesday Blitz November 01 Late 2022"]
[White "Rosenberg, Evan S"]
[Black "Popilski, Gil"]
[WhiteFideId "2019299"]
[BlackFideId "2809060"]
[WhiteElo "2389"]
[BlackElo "2537"]
[Result "0-1"]
[Round "06"]
[TimeControl "180+1"]
[Date "2022.11.02"]
[WhiteClock "0:00:14"]
[BlackClock "0:01:32"]

1. d4 {[%clk 0:03:00]}  Nf6 {[%clk 0:02:50]} 2. Nf3 {[%clk 0:03:01]}  d6 {[%clk 0:02:45]} 3. Nc3 {[%clk 0:02:57]}  Nbd7 {[%clk 0:02:42]} 4. e4 {[%clk 0:02:57]}  e5 {[%clk 0:02:42]} 5. Be2 {[%clk 0:02:52]}  g6 {[%clk 0:02:40]} 6. O-O {[%clk 0:02:51]}  Bg7 {[%clk 0:02:39]} 7. dxe5 {[%clk 0:02:48]}  dxe5 {[%clk 0:02:37]} 8. a4 {[%clk 0:02:44]}  O-O {[%clk 0:02:34]} 9. a5 {[%clk 0:02:43]}  Qe7 {[%clk 0:02:32]} 10. Bg5 {[%clk 0:02:39]}  c6 {[%clk 0:02:28]} 11. a6 {[%clk 0:02:38]}  b5 {[%clk 0:02:27]} 12. Bd3 {[%clk 0:01:31]}  Nc5 {[%clk 0:02:25]} 13. h3 {[%clk 0:01:22]}  Bxa6 {[%clk 0:02:23]} 14. b4 {[%clk 0:01:15]}  Nxd3 {[%clk 0:02:22]} 15. Rxa6 {[%clk 0:01:15]}  Nxb4 {[%clk 0:02:16]} 16. Ra1 {[%clk 0:01:15]}  a5 {[%clk 0:02:15]} 17. Qe2 {[%clk 0:01:10]}  Qc5 {[%clk 0:02:13]} 18. Na2 {[%clk 0:00:55]}  Qxc2 {[%clk 0:02:08]} 19. Qxc2 {[%clk 0:00:51]}  Nxc2 {[%clk 0:02:09]} 20. Rac1 {[%clk 0:00:51]}  Nd4 {[%clk 0:01:48]} 21. Nxd4 {[%clk 0:00:48]}  exd4 {[%clk 0:01:49]} 22. Rxc6 {[%clk 0:00:39]}  Nxe4 {[%clk 0:01:48]} 23. Bf4 {[%clk 0:00:31]}  b4 {[%clk 0:01:47]} 24. Re1 {[%clk 0:00:29]}  Nc3 {[%clk 0:01:45]} 25. Nc1 {[%clk 0:00:27]}  Rfe8 {[%clk 0:01:43]} 26. Kf1 {[%clk 0:00:20]}  a4 {[%clk 0:01:41]} 27. Nd3 {[%clk 0:00:18]}  b3 {[%clk 0:01:39]} 28. Rb6 {[%clk 0:00:16]}  Nd5 {[%clk 0:01:35]} 29. Rb5 {[%clk 0:00:14]}  Nxf4 {[%clk 0:01:33]} 30. Nxf4 {[%clk 0:00:14]}  Reb8 {[%clk 0:01:33]} 31. Rxb8+ {[%clk 0:00:13]}  Rxb8 {[%clk 0:01:32]} 32. Nd3 {[%clk 0:00:14]}  a3 {[%clk 0:01:32]} 0-1


[Site "https://www.chess.com"]

[Event "Titled Tuesday Blitz November 01 Late 2022"]
[White "Sarana, Alexey"]
[Black "Jones, Gawain C B"]
[WhiteFideId "24133795"]
[BlackFideId "409561"]
[WhiteElo "2689"]
[BlackElo "2657"]
[Result "1-0"]
[Round "06"]
[TimeControl "180+1"]
[Date "2022.11.01"]
[WhiteClock "0:00:14"]
[BlackClock "0:00:01"]

1. c4 {[%clk 0:02:54]}  Nf6 {[%clk 0:02:59]} 2. Nc3 {[%clk 0:02:55]}  g6 {[%clk 0:02:59]} 3. e4 {[%clk 0:02:55]}  d6 {[%clk 0:02:59]} 4. d4 {[%clk 0:02:56]}  Bg7 {[%clk 0:03:00]} 5. Be2 {[%clk 0:02:57]}  O-O {[%clk 0:02:58]} 6. Be3 {[%clk 0:02:57]}  e5 {[%clk 0:02:58]} 7. d5 {[%clk 0:02:57]}  Na6 {[%clk 0:02:59]} 8. g4 {[%clk 0:02:57]}  Nc5 {[%clk 0:02:59]} 9. f3 {[%clk 0:02:58]}  a5 {[%clk 0:02:58]} 10. h4 {[%clk 0:02:57]}  h5 {[%clk 0:02:58]} 11. g5 {[%clk 0:02:57]}  Nfd7 {[%clk 0:02:55]} 12. Qd2 {[%clk 0:02:58]}  f6 {[%clk 0:02:53]} 13. O-O-O {[%clk 0:02:57]}  fxg5 {[%clk 0:02:47]} 14. hxg5 {[%clk 0:02:58]}  a4 {[%clk 0:02:34]} 15. Kb1 {[%clk 0:02:57]}  Rf7 {[%clk 0:02:29]} 16. Nh3 {[%clk 0:02:56]}  Qe7 {[%clk 0:02:13]} 17. Nf2 {[%clk 0:02:54]}  Nb8 {[%clk 0:02:11]} 18. Nb5 {[%clk 0:02:49]}  Nba6 {[%clk 0:02:09]} 19. Rdg1 {[%clk 0:02:44]}  Bd7 {[%clk 0:02:06]} 20. Nd1 {[%clk 0:02:44]}  Raf8 {[%clk 0:02:02]} 21. Ndc3 {[%clk 0:02:42]}  Bc8 {[%clk 0:01:53]} 22. Rf1 {[%clk 0:02:40]}  Qd8 {[%clk 0:01:49]} 23. Bd1 {[%clk 0:02:35]}  c6 {[%clk 0:01:46]} 24. Na3 {[%clk 0:02:10]}  Qa5 {[%clk 0:01:32]} 25. dxc6 {[%clk 0:02:10]}  bxc6 {[%clk 0:01:32]} 26. Qxd6 {[%clk 0:02:09]}  Rd8 {[%clk 0:01:20]} 27. Qxg6 {[%clk 0:02:08]}  Nd3 {[%clk 0:01:04]} 28. Rxh5 {[%clk 0:01:52]}  Qb4 {[%clk 0:00:32]} 29. Bc1 {[%clk 0:01:52]}  Kf8 {[%clk 0:00:21]} 30. Rfh1 {[%clk 0:01:35]}  Nxc1 {[%clk 0:00:14]} 31. Rh8+ {[%clk 0:01:32]}  Bxh8 {[%clk 0:00:14]} 32. Rxh8+ {[%clk 0:01:31]}  Ke7 {[%clk 0:00:15]} 33. Rxd8 {[%clk 0:01:32]}  Kxd8 {[%clk 0:00:12]} 34. Kxc1 {[%clk 0:01:15]}  Rb7 {[%clk 0:00:11]} 35. Qf6+ {[%clk 0:01:10]}  Kd7 {[%clk 0:00:11]} 36. Qf7+ {[%clk 0:00:58]}  Kd8 {[%clk 0:00:11]} 37. Qf6+ {[%clk 0:00:59]}  Kd7 {[%clk 0:00:12]} 38. Qg7+ {[%clk 0:00:53]}  Kd8 {[%clk 0:00:11]} 39. Qh8+ {[%clk 0:00:51]}  Kd7 {[%clk 0:00:11]} 40. Qh2 {[%clk 0:00:40]}  Nc5 {[%clk 0:00:10]} 41. Qd2+ {[%clk 0:00:38]}  Ke8 {[%clk 0:00:09]} 42. Be2 {[%clk 0:00:37]}  Be6 {[%clk 0:00:08]} 43. g6 {[%clk 0:00:36]}  Rd7 {[%clk 0:00:08]} 44. Qh6 {[%clk 0:00:33]}  Rb7 {[%clk 0:00:08]} 45. Qd2 {[%clk 0:00:24]}  Qb6 {[%clk 0:00:05]} 46. f4 {[%clk 0:00:20]}  exf4 {[%clk 0:00:05]} 47. e5 {[%clk 0:00:20]}  f3 {[%clk 0:00:05]} 48. Bxf3 {[%clk 0:00:18]}  Qxb2+ {[%clk 0:00:04]} 49. Qxb2 {[%clk 0:00:17]}  Nd3+ {[%clk 0:00:04]} 50. Kd2 {[%clk 0:00:18]}  Rxb2+ {[%clk 0:00:05]} 51. Kxd3 {[%clk 0:00:18]}  Bf5+ {[%clk 0:00:05]} 52. Kd4 {[%clk 0:00:15]}  Bxg6 {[%clk 0:00:05]} 53. Bxc6+ {[%clk 0:00:16]}  Kd8 {[%clk 0:00:05]} 54. Bxa4 {[%clk 0:00:17]}  Rd2+ {[%clk 0:00:05]} 55. Kc5 {[%clk 0:00:17]}  Rd3 {[%clk 0:00:04]} 56. Nab5 {[%clk 0:00:16]}  Re3 {[%clk 0:00:04]} 57. Kd4 {[%clk 0:00:16]}  Rd3+ {[%clk 0:00:05]} 58. Kc5 {[%clk 0:00:16]}  Re3 {[%clk 0:00:06]} 59. Kd6 {[%clk 0:00:16]}  Bf7 {[%clk 0:00:04]} 60. Nd5 {[%clk 0:00:15]}  Rh3 {[%clk 0:00:03]} 61. Nd4 {[%clk 0:00:15]}  Bg8 {[%clk 0:00:01]} 62. Bd7 {[%clk 0:00:13]}  Rh6+ {[%clk 0:00:02]} 63. e6 {[%clk 0:00:14]}  Bxe6 {[%clk 0:00:01]} 64. Nc6# {[%clk 0:00:14]} 1-0


[Site "https://www.chess.com"]